[Event "FRA-ch Teams Top 16-A 2022"]
[Site "Chartres"]
[Date "2022.06.15"]
[Round "7.31"]
[White "Hirth, Julien"]
[Black "Mekhane, Adam"]
[Result "0-1"]
[ECO "B22"]
[WhiteElo "2072"]
[BlackElo "2276"]
[Annotator "NA RC"]
[PlyCount "71"]
[EventDate "2022.06.09"]
[EventType "team-tourn"]
[EventCountry "FRA"]
[SourceTitle "playchess.com"]
[Source "ChessBase"]
[SourceQuality "1"]
[TimeControl "40/5400+30:1800+30"]

1. e4 {[%emt 0:02:34]} c5 {[%emt 0:00:06]} 2. c3 {[%emt 0:00:09]} d5 {[%emt 0:00:19]} 3. exd5 {[%emt 0:00:08]} Nf6 {[%emt 0:00:10]} 4. Qa4+ {[%emt 0:01:02]} Nbd7 {[%emt 0:01:36]} 5. Qb3 {[%emt 0:00:24]} g6 {[%emt 0:17:46]} 6. Nf3 {[%emt 0:11:59]} Bg7 {[%emt 0:01:27]} 7. Be2 {[%emt 0:15:07]} O-O {[%emt 0:01:35]} 8. O-O {[%emt 0:03:00]} Re8 {[%emt 0:17:00]} 9. d4 {[%emt 0:26:34]} cxd4 {[%emt 0:08:26]} 10. Nxd4 {[%emt 0:00:07]} Nb6 {[%emt 0:17:17]} 11. Bf3 {[%emt 0:00:28]} Nfxd5 {[%emt 0:03:06]} 12. Rd1 {[%emt 0:00:37]} e5 {[%emt 0:05:11]} 13. Nb5 {[%emt 0:01:06]} e4 {[%emt 0:07:49]} 14. Be2 {[%emt 0:00:26]} a6 {[%emt 0:10:48]} 15. N5a3 {[%emt 0:00:28]} Qc7 {[%emt 0:00:57]} 16. c4 {[%emt 0:13:33]} Nf6 {[%emt 0:00:11]} 17. c5 {[%emt 0:05:58]} Nbd7 {[%emt 0:00:45]} 18. Bc4 {[%emt 0:00:06]} Nxc5 {[%emt 0:01:03]} 19. Qc2 {[%emt 0:02:38]} Ng4 {[%emt 0:00:57]} 20. g3 {[%emt 0:05:56]} Ne5 {[%emt 0:00:51]} 21. Be3 {[%emt 0:00:09]} Bg4 {[%emt 0:01:18]} 22. Rd5 {[%emt 0:01:05]} Ne6 {[%emt 0:00:26]} 23. Nd2 {[%emt 0:01:04]} Nxc4 {[%emt 0:00:56]} 24. Qxc4 {[%emt 0:00:53]} Bxb2 {[%emt 0:00:20]} 25. Rb1 {[%emt 0:03:53]} Bxa3 {[%emt 0:00:16]} 26. Qb3 {[%emt 0:03:01]} Be7 {[%emt 0:00:35]} 27. Nxe4 {[%emt 0:00:57]} b5 {[%emt 0:00:51]} 28. Rc1 {[%emt 0:00:27]} Qb7 {[%emt 0:00:07]} 29. Nd6 {[%emt 0:00:39]} Bxd6 {[%emt 0:00:24]} 30. Rxd6 {[%emt 0:00:03]} Bh3 {[%emt 0:00:23]} 31. f3 {[%emt 0:00:55]} Qxf3 {[%emt 0:00:19]} 32. Rd2 {[%emt 0:00:11]} Rac8 {[%emt 0:01:10]} 33. Rcd1 {[%emt 0:00:31]} Red8 {[%emt 0:00:52]} 34. Rxd8+ {[%emt 0:00:47]} Rxd8 {[%emt 0:00:03]} 35. Rxd8+ {[%emt 0:00:21]} Nxd8 {[%emt 0:00:01]} 36. Bc1 {[%emt 0:01:14]} 0-1

[Event "FRA-ch Teams Top 16-A 2022"]
[Site "Chartres"]
[Date "2022.06.15"]
[Round "7.32"]
[White "Aflalo, Sophie"]
[Black "Auvray, Juliette"]
[Result "1-0"]
[ECO "B31"]
[WhiteElo "2152"]
[BlackElo "1970"]
[Annotator "NA RC"]
[PlyCount "77"]
[EventDate "2022.06.09"]
[EventType "team-tourn"]
[EventCountry "FRA"]
[SourceTitle "playchess.com"]
[Source "ChessBase"]
[SourceQuality "1"]
[TimeControl "40/5400+30:1800+30"]

1. e4 {[%emt 0:07:23]} c5 {[%emt 0:00:09]} 2. Be2 {[%emt 0:00:04]} Nc6 {[%emt 0:03:13]} 3. f4 {[%emt 0:01:01]} g6 {[%emt 0:02:34]} 4. d3 {[%emt 0:00:24]} Bg7 {[%emt 0:01:42]} 5. c3 {[%emt 0:00:16]} e6 {[%emt 0:05:03]} 6. Nf3 {[%emt 0:00:22]} Nge7 {[%emt 0:02:25]} 7. O-O {[%emt 0:00:27]} d5 {[%emt 0:02:48]} 8. Qe1 {[%emt 0:01:36]} b6 {[%emt 0:08:55]} 9. Nbd2 {[%emt 0:09:19]} Ba6 {[%emt 0:03:39]} 10. Ng5 {[%emt 0:11:17]} h6 {[%emt 0:07:16]} 11. Nh3 {[%emt 0:00:10]} O-O {[%emt 0:03:03]} 12. Nf3 {[%emt 0:01:07]} Qd7 {[%emt 0:03:51]} 13. Nf2 {[%emt 0:10:25]} f5 {[%emt 0:05:34]} 14. Bd2 {[%emt 0:05:38]} Rad8 {[%emt 0:04:22]} 15. Rd1 {[%emt 0:02:42]} Qc7 {[%emt 0:02:59]} 16. e5 {[%emt 0:10:36]} d4 {[%emt 0:06:15]} 17. c4 {[%emt 0:00:31]} Bb7 {[%emt 0:01:39]} 18. Rb1 {[%emt 0:01:29]} Rb8 {[%emt 0:02:11]} 19. Nh3 {[%emt 0:02:13]} Nd8 {[%emt 0:03:09]} 20. b4 {[%emt 0:00:23]} Nf7 {[%emt 0:00:51]} 21. Qc1 {[%emt 0:06:03]} Ba8 {[%emt 0:03:01]} 22. Qa3 {[%emt 0:02:32]} Rfc8 {[%emt 0:02:28]} 23. Be1 {[%emt 0:07:05]} Bxf3 {[%emt 0:03:56]} 24. Bxf3 {[%emt 0:03:43]} g5 {[%emt 0:01:12]} 25. Bh5 {[%emt 0:01:10]} gxf4 {[%emt 0:04:36]} 26. Nxf4 {[%emt 0:05:00]} Nd8 {[%emt 0:03:26]} 27. bxc5 {[%emt 0:00:21]} bxc5 {[%emt 0:01:15]} 28. Ba5 {[%emt 0:01:21]} Qxe5 {[%emt 0:04:35]} 29. Rbe1 {[%emt 0:00:37]} Qf6 {[%emt 0:00:45]} 30. Bxd8 {[%emt 0:00:29]} Rxd8 {[%emt 0:00:44]} 31. Nxe6 {[%emt 0:03:39]} Rdc8 {[%emt 0:01:08]} 32. Qxa7 {[%emt 0:02:10]} Rb2 {[%emt 0:01:53]} 33. Bf3 {[%emt 0:00:42]} Ng6 {[%emt 0:00:46]} 34. Bd5 {[%emt 0:00:39]} Kh7 {[%emt 0:00:24]} 35. Rxf5 {[%emt 0:00:53]} Rxa2 {[%emt 0:00:45]} 36. Qb7 {[%emt 0:01:12]} Rb8 {[%emt 0:01:04]} 37. Qc7 {[%emt 0:00:44]} Rc8 {[%emt 0:00:54]} 38. Qxc8 {[%emt 0:00:09]} Qxf5 {[%emt 0:00:19]} 39. Ng5+ {[%emt 0:00:09]} 1-0